[Event "XII Figueira da Foz Open 2018"]
[Site "Figueira da Foz"]
[Date "2018.10.31"]
[Round "4"]
[White "Dionizio, Andre Filipe Nascim"]
[Black "Gama, Joao Goncalo Cereje"]
[Result "1-0"]
[ECO "C54"]
[WhiteElo "2013"]
[BlackElo "1598"]
[Annotator "NA RC"]
[PlyCount "127"]
[EventDate "2018.10.30"]
[EventType "swiss"]
[EventCountry "POR"]
[SourceTitle "playchess.com"]
[Source "ChessBase"]
[SourceQuality "1"]
[TimeControl "40/5400+30:1800+30"]

1. e4 {[%emt 0:00:00]} e5 {[%emt 0:00:00]} 2. Nf3 {[%emt 0:00:00]} Nc6 {[%emt 0:00:00]} 3. Bc4 {[%emt 0:00:00]} Bc5 {[%emt 0:00:00]} 4. c3 {[%emt 0:00:00]} Nf6 {[%emt 0:00:09]} 5. d3 {[%emt 0:00:01]} d6 {[%emt 0:00:30]} 6. h3 {[%emt 0:00:05]} a6 {[%emt 0:01:08]} 7. a4 {[%emt 0:00:31] C54: Giuoco Piano: 4 c3 Nf6, main lines with 5 d4 and 5 d3} Ba7 {[%emt 0:00:25]} 8. O-O {[%emt 0:00:55]} O-O {[%emt 0:00:37]} 9. Re1 {[%emt 0:02:31]} h6 {[%emt 0:02:33]} 10. Nbd2 {[%emt 0:01:32]} Ne7 {[%emt 0:06:04]} 11. Nf1 {[%emt 0:01:10]} Ng6 {[%emt 0:00:59]} 12. b4 {[%emt 0:03:11]} c6 {[%emt 0:03:37]} 13. Bb3 {[%emt 0:15:54] [#]} Qc7 $146 {[%emt 0:05:10]} ({Predecessor:} 13... Re8 14. Ra2 d5 {½-½ (44) Vachier Lagrave,M (2783)-Giri,A (2764) Leuven 2017}) 14. Qe2 {[%emt 0:05:11]} Re8 {[%emt 0:06:30]} 15. Be3 {[%emt 0:10:54]} Be6 {[%emt 0:09:50]} 16. Bxe6 {[%emt 0:00:34]} fxe6 {[%emt 0:01:20]} 17. Bxa7 {[%emt 0:00:37]} Rxa7 {[%emt 0:00:13]} 18. g3 {[%emt 0:02:52]} d5 {[%emt 0:04:39]} 19. N1d2 {[%emt 0:07:27]} b6 {[%emt 0:03:34]} 20. d4 {[%emt 0:11:36]} exd4 {[%emt 0:06:27]} 21. cxd4 {[%emt 0:00:28]} Qe7 {[%emt 0:00:42]} 22. e5 {[%emt 0:00:12]} (22. a5 $16) 22... Nh7 {[%emt 0:04:32]} (22... Nd7 $14) 23. Qd3 {[%emt 0:02:43]} Nhf8 {[%emt 0:02:59]} 24. Rec1 {[%emt 0:02:48]} Qd7 {[%emt 0:01:33]} 25. Rc3 {[%emt 0:03:52]} (25. a5 $16) 25... Rc8 {[%emt 0:04:10]} (25... a5 $14) 26. Nb3 {[%emt 0:03:13]} Ne7 {[%emt 0:03:59]} 27. Rac1 {[%emt 0:00:39]} g5 {[%emt 0:04:43]} (27... Rb8 $16) 28. Qc2 {[%emt 0:03:40]} Rac7 {[%emt 0:03:39]} 29. a5 {[%emt 0:01:42]} Rb8 {[%emt 0:01:20]} 30. Qd2 {[%emt 0:04:06]} Nh7 {[%emt 0:01:31]} (30... Qe8 {was called for.} 31. axb6 Rxb6) 31. Kh2 {[%emt 0:01:28]} Qc8 {[%emt 0:02:28]} 32. Ne1 {[%emt 0:02:58]} Kg7 {[%emt 0:04:38]} 33. axb6 {[%emt 0:01:13]} Rxb6 {[%emt 0:00:10]} 34. Nd3 Nf5 {[%emt 0:03:17]} 35. Ra1 {[%emt 0:01:19]} Ra7 {[%emt 0:02:30]} 36. Rc2 {[%emt 0:01:03]} Nf8 {[%emt 0:03:53]} 37. f4 {[%emt 0:00:42]} Kg6 {[%emt 0:00:37]} 38. Qf2 {[%emt 0:00:30]} Rf7 {[%emt 0:00:47]} 39. Nbc5 {[%emt 0:00:31]} Ng7 {[%emt 0:01:53]} 40. Rca2 {[%emt 0:00:00]} Ra7 $2 {[%emt 0:00:00]} (40... Kh7 41. Qd2 (41. Rxa6 Rxa6 42. Rxa6 Ng6 $18) 41... Nf5 42. fxg5 Nxd4) 41. fxg5 {[%emt 0:09:31]} hxg5 {[%emt 0:02:10]} 42. Qf6+ {[%emt 0:00:05]} Kh7 {[%emt 0:00:17]} 43. Qxg5 {[%emt 0:00:06]} Nf5 {[%emt 0:00:53]} 44. Rf2 {[%emt 0:02:35]} Rg7 {[%emt 0:00:51]} 45. Qh5+ {[%emt 0:00:04]} Kg8 {[%emt 0:00:18]} 46. Raf1 {[%emt 0:01:07]} Nh7 {[%emt 0:02:15]} 47. Rxf5 {[%emt 0:01:12]} (47. g4 $142 Rg5 {[#]} 48. Qxg5+ $3 {[%mdl 512]} Nxg5 49. gxf5) 47... exf5 {[%emt 0:00:45]} 48. Rxf5 {[%emt 0:00:02]} Nf8 {[%emt 0:03:11] [#]} (48... Rb8 $142 49. g4 Qe8) 49. Qf3 $18 {[%emt 0:01:32]} (49. e6 $142 $1 {[%mdl 512]} Rb5 (49... Nxe6 50. Nxe6) 50. Re5) 49... Ne6 {[%emt 0:02:41]} 50. Nxe6 {[%emt 0:00:12]} Qxe6 {[%emt 0:00:06]} 51. Rf8+ {[%emt 0:00:03]} Kh7 {[%emt 0:00:16]} 52. Qh5+ {[%emt 0:00:01]} Qh6 {[%emt 0:00:29]} 53. Rh8+ {[%emt 0:00:02]} Kxh8 {[%emt 0:00:26]} 54. Qxh6+ {[%emt 0:00:02]} Kg8 {[%emt 0:00:20]} 55. Qd6 {[%emt 0:00:31]} a5 {[%emt 0:00:55]} 56. Qd8+ {[%emt 0:00:02]} Kh7 {[%emt 0:00:11]} 57. Qxb6 {[%emt 0:00:01]} axb4 {[%emt 0:00:09]} 58. Nxb4 {[%emt 0:00:15]} Rg6 {[%emt 0:00:05]} 59. Qc7+ {[%emt 0:00:13]} Kh6 {[%emt 0:00:06]} 60. Qf7 {[%emt 0:00:20]} Rg7 {[%emt 0:00:20]} 61. Qf8 {[%emt 0:00:02]} Kg6 {[%emt 0:00:34]} 62. e6 {[%emt 0:00:04]} Kh7 {[%emt 0:00:11]} 63. e7 {[%emt 0:00:06]} Rxe7 {[%emt 0:00:03]} 64. Qxe7+ {[%emt 0:00:02]} 1-0

[Event "XII Figueira da Foz Open 2018"]
[Site "Figueira da Foz"]
[Date "2018.10.31"]
[Round "4"]
[White "Felizes, Paulo"]
[Black "Dong, Rafael"]
[Result "1-0"]
[ECO "A45"]
[WhiteElo "1965"]
[BlackElo "1360"]
[Annotator "NA RC"]
[PlyCount "49"]
[EventDate "2018.10.30"]
[EventType "swiss"]
[EventCountry "POR"]
[SourceTitle "playchess.com"]
[Source "ChessBase"]
[SourceQuality "1"]
[TimeControl "40/5400+30:1800+30"]

1. d4 {[%emt 0:00:00]} Nf6 2. Bg5 {[%emt 0:00:00]} e6 {[%emt 0:00:00]} 3. e4 {[%emt 0:00:19]} h6 {[%emt 0:00:00]} 4. Bxf6 {[%emt 0:00:13]} Qxf6 {[%emt 0:00:00]} 5. Nf3 {[%emt 0:00:27]} d6 {[%emt 0:00:01]} 6. Bd3 {[%emt 0:00:49]} Nd7 {[%emt 0:00:10]} 7. Nbd2 {[%emt 0:00:57] A46: 1 d4 Nf6 2 Nf3 e6: Torre, London and Colle Systems} (7. O-O e5 8. c3 g6 9. Nbd2 Bg7 10. Re1 O-O 11. a4 Qe7 12. a5 exd4 13. cxd4 c5 14. Nb3 cxd4 15. Nbxd4 Ne5 16. Rb1 Bg4 17. h3 Nxf3+ 18. Nxf3 Bxf3 19. Qxf3 Rac8 20. a6 bxa6 21. Bxa6 Rc7 {½-½ (21) Mantovani,R (2372)-Jenni,F (2564) Switzerland 2008}) 7... a6 {[%emt 0:00:37]} 8. e5 {[%emt 0:04:10]} dxe5 {[%emt 0:00:36]} 9. Ne4 {[%emt 0:00:41]} Qd8 $146 {[%emt 0:02:00]} ({Predecessor:} 9... Qe7 10. Nxe5 Nxe5 11. dxe5 Qb4+ 12. c3 Qxb2 13. O-O Qa3 14. Qh5 Bd7 {0-1 (59) Rakhmangulova,A (2245)-Bulmaga,I (2360) Mamaia 2016}) 10. dxe5 {[%emt 0:01:07]} b5 {[%emt 0:04:31]} 11. a4 {[%emt 0:11:49]} b4 {[%emt 0:02:09]} 12. Qe2 {[%emt 0:01:04]} Bb7 {[%emt 0:03:14]} 13. Rd1 {[%emt 0:02:21]} g5 {[%emt 0:02:10]} 14. Bc4 {[%emt 0:01:41]} Qe7 {[%emt 0:00:39]} 15. O-O {[%emt 0:44:30]} Bg7 {[%emt 0:01:15]} 16. Qe3 {[%emt 0:06:19]} g4 {[%emt 0:01:51]} 17. Nd4 {[%emt 0:05:27]} (17. Nfd2 $15) 17... Bxe5 {[%emt 0:05:06]} (17... Nxe5 $17 18. Be2 O-O) 18. f4 {[%emt 0:01:22]} gxf3 {[%emt 0:01:21]} 19. Nxf3 {[%emt 0:00:13]} Bxb2 {[%emt 0:03:50]} 20. Rxd7 $2 {[%emt 0:08:16]} (20. Nd4 $17) 20... Kxd7 {[%emt 0:02:20]} 21. Rb1 {[%emt 0:01:48]} Bxe4 {[%emt 0:00:54]} 22. Qxe4 {[%emt 0:01:51]} Bc3 $4 {[%emt 0:01:26]} (22... Qc5+ $19 23. Kh1 Bc3) 23. Rd1+ {[%emt 0:00:16]} Qd6 {[%emt 0:03:35]} 24. Rxd6+ {[%emt 0:00:23]} cxd6 $18 {[%emt 0:00:03]} (24... Kxd6 $142 25. Bxa6 Ke7 26. Qh4+ Kf8) 25. Qb7+ {[%emt 0:00:11]} 1-0

[Event "XII Figueira da Foz Open 2018"]
[Site "Figueira da Foz"]
[Date "2018.10.31"]
[Round "4"]
[White "Morais, Vitor"]
[Black "Asvestopoulou, Evdokia"]
[Result "1-0"]
[ECO "A01"]
[WhiteElo "1918"]
[BlackElo "1720"]
[Annotator "NA RC"]
[PlyCount "99"]
[EventDate "2018.10.30"]
[EventType "swiss"]
[EventCountry "POR"]
[SourceTitle "playchess.com"]
[Source "ChessBase"]
[SourceQuality "1"]
[TimeControl "40/5400+30:1800+30"]

1. b3 {[%emt 0:00:00]} e5 {[%emt 0:01:32]} 2. Bb2 {[%emt 0:00:00]} Nc6 {[%emt 0:00:26]} 3. e3 {[%emt 0:00:00]} d6 {[%emt 0:00:27]} 4. c4 {[%emt 0:00:11]} g6 {[%emt 0:01:29]} 5. Nf3 {[%emt 0:00:12]} Bg7 {[%emt 0:01:02] A01: Nimzowitsch-Larsen Opening} 6. Be2 {[%emt 0:00:09]} (6. d4 exd4 7. Nxd4 Nxd4 8. Bxd4 Nf6 9. Be2 O-O 10. O-O Re8 11. Bf3 c6 {1-0 (55) Fedoseev,V (2707)-Vitiugov,N (2730) Satka 2018}) 6... f5 {[%emt 0:08:01]} 7. d3 {[%emt 0:00:07]} Nf6 {[%emt 0:01:16]} 8. Nbd2 {[%emt 0:00:10]} O-O {[%emt 0:00:37]} 9. O-O {[%emt 0:00:31]} h6 {[%emt 0:02:54]} 10. Rb1 $146 {[%emt 0:00:17]} ({Predecessor:} 10. Rc1 Re8 {0-1 (52) Bakhtadze,G (2335)-Galdunts,S (2450) Yerevan 1996}) 10... Ne7 {[%emt 0:05:23]} 11. b4 {[%emt 0:01:50]} g5 {[%emt 0:00:53]} 12. a4 {[%emt 0:00:19]} Ng6 {[%emt 0:01:30]} 13. Ne1 {[%emt 0:00:17]} Be6 {[%emt 0:06:43]} 14. f3 {[%emt 0:02:12]} Qe7 {[%emt 0:03:24]} 15. Nc2 {[%emt 0:00:14]} f4 {[%emt 0:05:57]} 16. Ne4 {[%emt 0:00:36]} Nxe4 {[%emt 0:01:19]} 17. dxe4 {[%emt 0:00:10]} Bd7 {[%emt 0:04:47]} 18. b5 {[%emt 0:00:21]} Kh7 {[%emt 0:07:48]} 19. Rf2 {[%emt 0:03:19]} Be6 {[%emt 0:08:43]} 20. Bc1 {[%emt 0:02:14]} Qf7 {[%emt 0:06:29]} 21. Qd3 {[%emt 0:00:12]} a5 {[%emt 0:06:12]} 22. Bd2 {[%emt 0:01:11]} b6 {[%emt 0:00:52]} 23. Kh1 {[%emt 0:00:12]} Bf6 {[%emt 0:02:01]} 24. g3 {[%emt 0:00:22]} Bg7 {[%emt 0:01:07]} 25. Rg1 {[%emt 0:00:35]} Rg8 {[%emt 0:01:15]} 26. Bc3 {[%emt 0:00:25]} Raf8 {[%emt 0:02:02]} 27. Be1 {[%emt 0:04:15]} Kh8 {[%emt 0:00:47]} 28. Bd2 {[%emt 0:04:46]} Qe7 {[%emt 0:07:01]} 29. Na3 {[%emt 0:00:13] [#]} Rf7 {[%emt 0:09:42]} (29... g4 $1 $17 {[%mdl 512]} 30. fxg4 fxg3 31. Rxf8 Nxf8 32. Rxg3 Nd7) 30. Nb1 {[%emt 0:01:16] [#]} fxe3 {[%emt 0:01:47]} (30... g4 $1 $15 {[%mdl 512]}) 31. Bxe3 {[%emt 0:00:10]} Nf8 {[%emt 0:01:18]} 32. Nc3 {[%emt 0:00:14]} Nd7 {[%emt 0:00:27]} 33. Nd5 {[%emt 0:00:08]} Bxd5 {[%emt 0:00:28]} 34. cxd5 {[%emt 0:00:22]} Nc5 {[%emt 0:00:43]} 35. Qc2 {[%emt 0:00:16]} Rgf8 {[%emt 0:00:27]} 36. Rgf1 {[%emt 0:00:27]} Kg8 {[%emt 0:00:26]} 37. Bd1 {[%emt 0:01:46]} Kh8 {[%emt 0:00:28]} 38. Qc4 {[%emt 0:01:07]} Kh7 {[%emt 0:00:14]} 39. Bc2 {[%emt 0:00:07]} Kh8 {[%emt 0:00:03]} 40. Kg2 {[%emt 0:00:00]} Re8 {[%emt 0:00:00]} 41. Qe2 {[%emt 0:05:40]} Qf6 {[%emt 0:05:19]} 42. Rh1 {[%emt 0:01:22]} Bf8 {[%emt 0:04:21]} (42... Qg6 $14) 43. h4 {[%emt 0:00:10]} Rh7 {[%emt 0:03:40]} 44. hxg5 {[%emt 0:00:23]} hxg5 {[%emt 0:00:02]} 45. Rxh7+ {[%emt 0:00:24]} Kxh7 {[%emt 0:00:01]} 46. f4 {[%emt 0:00:41]} Qg6 {[%emt 0:09:33]} 47. f5 $18 {[%emt 0:00:27]} Qh6 {[%emt 0:00:32]} 48. Qg4 {[%emt 0:00:16]} Be7 {[%emt 0:00:21]} 49. Rf1 {[%emt 0:00:50]} Kg8 {[%emt 0:02:31]} 50. Rh1 {[%emt 0:00:09]} 1-0

[Event "XII Figueira da Foz Open 2018"]
[Site "Figueira da Foz"]
[Date "2018.10.31"]
[Round "4"]
[White "Pais, Bruno Miguel Dos Sa"]
[Black "Bouxo, Luis Antonio Maximi"]
[Result "1-0"]
[ECO "D30"]
[WhiteElo "1836"]
[BlackElo "1585"]
[Annotator "NA RC"]
[PlyCount "79"]
[EventDate "2018.10.30"]
[EventType "swiss"]
[EventCountry "POR"]
[SourceTitle "playchess.com"]
[Source "ChessBase"]
[SourceQuality "1"]
[TimeControl "40/5400+30:1800+30"]

1. d4 {[%emt 0:00:00]} d5 {[%emt 0:00:49]} 2. c4 {[%emt 0:00:00]} e6 {[%emt 0:00:23]} 3. Nf3 {[%emt 0:00:00]} Nf6 {[%emt 0:00:28]} 4. g3 {[%emt 0:00:00]} Bd6 {[%emt 0:04:41]} 5. Bg2 {[%emt 0:01:07]} O-O {[%emt 0:00:36]} 6. O-O {[%emt 0:00:24]} c6 {[%emt 0:02:53]} 7. Qc2 {[%emt 0:00:28]} Nbd7 {[%emt 0:03:54]} 8. Nbd2 {[%emt 0:00:39]} Re8 {[%emt 0:05:14]} 9. e4 {[%emt 0:04:15]} dxe4 {[%emt 0:01:19] E01: Catalan: Early deviations} 10. Nxe4 {[%emt 0:00:24]} Nxe4 {[%emt 0:02:09]} 11. Qxe4 {[%emt 0:00:04]} Nf6 {[%emt 0:02:14]} (11... e5 12. Bg5 f6 13. Bd2 exd4 14. Qxd4 Ne5 15. Bc3 {½-½ (15) Sakaev,K (2668)-Lautier,J (2680) Khanty-Mansiysk 2005}) 12. Qc2 {[%emt 0:00:16]} h6 {[%emt 0:01:57]} 13. Rd1 {[%emt 0:01:31]} Qa5 {[%emt 0:05:33]} 14. c5 $146 {[%emt 0:08:24]} ({Predecessor:} 14. Bd2 Qh5 15. Re1 e5 16. dxe5 Bxe5 17. Nxe5 Rxe5 {1-0 (42) Zimmerman,Y (2410)-Kovacs,L (2130) Gyula 1997}) 14... Bb8 {[%emt 0:05:17]} 15. a4 {[%emt 0:11:42]} Qd8 {[%emt 0:03:21]} 16. b4 {[%emt 0:12:32]} Nd5 {[%emt 0:02:28]} 17. b5 {[%emt 0:01:41]} a6 {[%emt 0:07:18]} 18. b6 {[%emt 0:04:38]} Qf6 {[%emt 0:01:36]} 19. Bb2 {[%emt 0:02:25]} Bd7 {[%emt 0:02:10]} 20. Nd2 {[%emt 0:05:13]} Qg5 {[%emt 0:02:36]} 21. Nc4 {[%emt 0:03:58]} Bc8 {[%emt 0:04:38]} 22. Re1 {[%emt 0:03:49]} Rd8 {[%emt 0:01:48]} 23. Rad1 {[%emt 0:02:02]} Ne7 $1 {[%emt 0:04:59]} 24. Bc1 {[%emt 0:06:20]} Qh5 {[%emt 0:05:18]} 25. Bb2 $2 {[%emt 0:04:40]} ({Better is} 25. Rd3 $16) 25... Qg5 {[%emt 0:00:29]} 26. Qe2 {[%emt 0:02:09]} Ng6 {[%emt 0:04:41]} 27. h4 {[%emt 0:01:56]} Qe7 {[%emt 0:02:34]} 28. Rd3 $2 {[%emt 0:05:14]} (28. h5 $18) 28... Bd7 $2 {[%emt 0:04:15]} (28... Qf8 $16 {is a better defense.} 29. Be4 Ne7) 29. Ba3 {[%emt 0:01:02]} (29. h5 $142) 29... Qf6 {[%emt 0:01:59]} 30. Bb2 {[%emt 0:00:31]} Qe7 {[%emt 0:00:31]} 31. a5 {[%emt 0:00:01]} Be8 {[%emt 0:01:05]} 32. Red1 {[%emt 0:00:34]} Qf8 {[%emt 0:00:36]} 33. Qg4 {[%emt 0:01:40]} Ne7 {[%emt 0:02:41]} 34. Bc1 {[%emt 0:00:37]} g6 {[%emt 0:02:07]} (34... f6 $16 35. h5 Kh8) 35. h5 $16 {[%emt 0:03:17]} (35. Qe2 $18) 35... f5 {[%emt 0:02:01]} 36. Qe2 {[%emt 0:01:03]} Bf7 {[%emt 0:01:15]} 37. hxg6 {[%emt 0:01:08]} Nxg6 {[%emt 0:00:53]} 38. Qe3 {[%emt 0:03:02]} f4 {[%emt 0:02:17]} 39. Qe4 {[%emt 0:01:33]} fxg3 {[%emt 0:00:25]} 40. fxg3 {[%emt 0:00:00]} 1-0

[Event "XII Figueira da Foz Open 2018"]
[Site "Figueira da Foz"]
[Date "2018.10.31"]
[Round "4"]
[White "Correia, Pedro Mourao Soares"]
[Black "Moes Joaquim, Carlos"]
[Result "1-0"]
[ECO "B30"]
[WhiteElo "1518"]
[BlackElo "1415"]
[Annotator "NA RC"]
[PlyCount "75"]
[EventDate "2018.10.30"]
[EventType "swiss"]
[EventCountry "POR"]
[SourceTitle "playchess.com"]
[Source "ChessBase"]
[SourceQuality "1"]
[TimeControl "40/5400+30:1800+30"]

1. e4 {[%emt 0:00:00]} c5 {[%emt 0:01:31]} 2. Nf3 {[%emt 0:00:00]} Nc6 {[%emt 0:00:15]} 3. Bb5 {[%emt 0:00:06]} Qc7 {[%emt 0:00:39]} 4. d4 {[%emt 0:01:49]} cxd4 {[%emt 0:01:01]} 5. O-O {[%emt 0:07:47]} e5 {[%emt 0:00:50]} 6. c3 {[%emt 0:00:44]} Nf6 {[%emt 0:00:45]} 7. cxd4 {[%emt 0:02:39]} Bd6 {[%emt 0:03:20]} 8. Nc3 {[%emt 0:05:01]} O-O {[%emt 0:00:25]} 9. Bg5 {[%emt 0:00:58]} exd4 {[%emt 0:01:24]} 10. Bxf6 {[%emt 0:07:42]} dxc3 {[%emt 0:00:33]} 11. Bxc3 {[%emt 0:00:47]} a6 {[%emt 0:00:20]} 12. Bd3 {[%emt 0:02:40]} b5 {[%emt 0:00:39]} 13. e5 {[%emt 0:04:58]} Bxe5 {[%emt 0:01:53]} 14. Bxh7+ {[%emt 0:05:47]} Kh8 {[%emt 0:00:20]} 15. Nxe5 {[%emt 0:01:40]} Nxe5 {[%emt 0:00:42]} 16. Qh5 {[%emt 0:04:47]} Re8 {[%emt 0:02:09]} 17. Be4+ {[%emt 0:04:01]} Kg8 {[%emt 0:00:22]} 18. Bxa8 {[%emt 0:01:51]} d6 {[%emt 0:00:29]} 19. Bd5 {[%emt 0:02:37]} Bg4 {[%emt 0:02:34]} 20. Qg5 {[%emt 0:03:40]} Qd7 {[%emt 0:03:06]} 21. a3 {[%emt 0:08:24]} Kf8 {[%emt 0:00:25]} 22. f3 {[%emt 0:02:02]} Bf5 {[%emt 0:02:00]} 23. Be4 {[%emt 0:03:28]} Be6 {[%emt 0:01:06]} 24. Bxe5 {[%emt 0:01:15]} dxe5 {[%emt 0:00:17]} 25. Qe3 {[%emt 0:01:42]} Kg8 {[%emt 0:00:51]} 26. Rfd1 {[%emt 0:01:11]} Qe7 {[%emt 0:00:20]} 27. Rd2 {[%emt 0:01:30]} Qh4 {[%emt 0:02:02]} 28. Bd5 {[%emt 0:02:39]} g6 {[%emt 0:00:21]} 29. Bxe6 {[%emt 0:00:09]} Rxe6 {[%emt 0:00:13]} 30. Rad1 {[%emt 0:00:38]} Re8 {[%emt 0:00:43]} 31. Qb6 {[%emt 0:00:46]} Kg7 {[%emt 0:00:58]} 32. Rd8 {[%emt 0:02:37]} Re6 {[%emt 0:00:30]} 33. Qb8 {[%emt 0:01:26]} Qf4 {[%emt 0:03:27]} 34. Rg8+ {[%emt 0:04:39]} Kf6 {[%emt 0:00:26]} 35. Qd8+ {[%emt 0:00:38]} Re7 36. Re8 Qe3+ {[%emt 0:04:32]} 37. Kf1 {[%emt 0:01:57]} Qc5 {[%emt 0:00:16]} 38. Rd6+ {[%emt 0:03:46]} 1-0

[Event "XII Figueira da Foz Open 2018"]
[Site "Figueira da Foz"]
[Date "2018.10.31"]
[Round "4"]
[White "Soares, Sara Joana De Moura"]
[Black "Goncalves, Lucas Jordao"]
[Result "1/2-1/2"]
[ECO "C54"]
[WhiteElo "1481"]
[BlackElo "1401"]
[Annotator "NA"]
[PlyCount "158"]
[EventDate "2018.10.30"]
[EventType "swiss"]
[EventCountry "POR"]
[SourceTitle "playchess.com"]
[Source "ChessBase"]
[SourceQuality "1"]
[TimeControl "40/5400+30:1800+30"]

1. e4 {[%emt 0:00:00]} e5 {[%emt 0:00:00]} 2. Nf3 {[%emt 0:00:00]} Nc6 {[%emt 0:00:00]} 3. Bc4 {[%emt 0:00:08]} Bc5 {[%emt 0:00:30]} 4. c3 {[%emt 0:00:31]} Nf6 {[%emt 0:00:11]} 5. d4 {[%emt 0:00:43]} exd4 {[%emt 0:00:14]} 6. e5 {[%emt 0:01:35]} d5 {[%emt 0:01:03]} 7. Bb5 {[%emt 0:00:08]} Ne4 {[%emt 0:00:06]} 8. cxd4 {[%emt 0:00:28]} Bb4+ {[%emt 0:00:13]} 9. Bd2 {[%emt 0:00:18]} Nxd2 {[%emt 0:01:15]} 10. Nbxd2 {[%emt 0:00:18]} Bd7 {[%emt 0:00:13]} 11. a3 {[%emt 0:09:27]} Bxd2+ {[%emt 0:01:03]} 12. Qxd2 {[%emt 0:00:26]} O-O {[%emt 0:00:11]} 13. Bxc6 {[%emt 0:04:18]} Bxc6 {[%emt 0:00:09]} 14. O-O {[%emt 0:00:38]} Qd7 {[%emt 0:01:52]} 15. Rfe1 {[%emt 0:03:11]} Rfe8 {[%emt 0:02:56]} 16. Rac1 {[%emt 0:01:47]} h6 {[%emt 0:07:48]} 17. h3 {[%emt 0:11:08]} Qf5 {[%emt 0:05:58]} 18. Qa5 {[%emt 0:12:51]} Qd7 {[%emt 0:01:11]} 19. Qd2 {[%emt 0:08:02]} a6 {[%emt 0:01:03]} 20. Re3 {[%emt 0:01:52]} Qf5 {[%emt 0:00:11]} 21. b3 {[%emt 0:07:32]} Re6 {[%emt 0:06:38]} 22. Ne1 {[%emt 0:02:46]} Rg6 {[%emt 0:00:18]} 23. Rf3 {[%emt 0:02:57]} Qh5 {[%emt 0:07:00]} 24. Qf4 {[%emt 0:04:43]} Rf8 {[%emt 0:00:12]} 25. a4 {[%emt 0:03:12]} a5 {[%emt 0:08:04]} 26. Rg3 {[%emt 0:03:00]} Qe2 {[%emt 0:04:14]} 27. Rxg6 {[%emt 0:02:11]} fxg6 {[%emt 0:00:12]} 28. Qe3 {[%emt 0:00:08]} Qh5 {[%emt 0:00:56]} 29. Qd2 {[%emt 0:02:21]} Qf5 {[%emt 0:00:42]} 30. Qe3 {[%emt 0:03:07]} Qc8 {[%emt 0:03:47]} 31. Qc3 {[%emt 0:03:12]} Rf7 {[%emt 0:02:49]} 32. Qxa5 {[%emt 0:01:27]} Qd8 {[%emt 0:00:50]} 33. Qd2 {[%emt 0:01:54]} Qd7 {[%emt 0:02:03]} 34. Nd3 {[%emt 0:01:52]} b6 {[%emt 0:00:25]} 35. Nb4 {[%emt 0:02:18]} Bb7 {[%emt 0:00:07]} 36. Qe3 {[%emt 0:00:57]} Qe6 {[%emt 0:03:16]} 37. Nd3 {[%emt 0:01:10]} Bc8 {[%emt 0:01:36]} 38. b4 {[%emt 0:02:21]} Qf5 {[%emt 0:03:09]} 39. b5 {[%emt 0:01:11]} Qe6 {[%emt 0:01:29]} 40. Nf4 {[%emt 0:00:00]} Qf5 {[%emt 0:00:00]} 41. Nd3 {[%emt 0:01:50]} Be6 {[%emt 0:01:54]} 42. Rc6 {[%emt 0:03:09]} Bc8 {[%emt 0:03:06]} 43. g4 {[%emt 0:06:56]} Qf3 {[%emt 0:08:05]} 44. Qxf3 {[%emt 0:04:07]} Rxf3 {[%emt 0:00:17]} 45. Ne1 {[%emt 0:00:07]} Rf7 {[%emt 0:02:32]} 46. Kg2 {[%emt 0:01:50]} g5 {[%emt 0:00:54]} 47. Nd3 {[%emt 0:01:06]} Kf8 {[%emt 0:00:25]} 48. Nb4 {[%emt 0:01:55]} Ke8 {[%emt 0:01:55]} 49. f3 {[%emt 0:04:12]} Kd8 {[%emt 0:01:23]} 50. Rc1 {[%emt 0:03:31]} Bb7 {[%emt 0:04:06]} 51. Kg3 {[%emt 0:01:59]} g6 {[%emt 0:04:44]} 52. Nd3 {[%emt 0:00:53]} Kd7 {[%emt 0:01:06]} 53. Re1 {[%emt 0:00:46]} Ke7 {[%emt 0:01:01]} 54. f4 {[%emt 0:00:00]} gxf4+ {[%emt 0:03:09]} 55. Nxf4 {[%emt 0:00:00]} g5 {[%emt 0:00:11]} 56. Nd3 {[%emt 0:00:05]} c6 {[%emt 0:01:39]} 57. bxc6 {[%emt 0:02:29]} Bxc6 {[%emt 0:00:10]} 58. Ra1 {[%emt 0:00:21]} Rf8 {[%emt 0:00:17]} 59. Kg2 {[%emt 0:00:59]} Ra8 {[%emt 0:00:17]} 60. Nb4 {[%emt 0:01:46]} Kd7 {[%emt 0:00:36]} 61. Nxc6 Kxc6 {[%emt 0:00:07]} 62. Kg3 {[%emt 0:00:44]} Rf8 {[%emt 0:01:02]} 63. Rc1+ {[%emt 0:00:53]} Kd7 {[%emt 0:00:14]} 64. e6+ {[%emt 0:00:47]} Kd6 {[%emt 0:02:18]} 65. Rb1 {[%emt 0:00:24]} Kc6 {[%emt 0:00:10]} 66. Re1 {[%emt 0:00:55]} Kd6 {[%emt 0:00:15]} 67. Rb1 {[%emt 0:00:00]} Kc6 {[%emt 0:00:00]} 68. Re1 {[%emt 0:01:44]} Kd6 {[%emt 0:00:00]} 69. e7 {[%emt 0:01:35]} Re8 {[%emt 0:00:00]} 70. Kf3 {[%emt 0:00:13]} Rxe7 {[%emt 0:00:08]} 71. Rxe7 {[%emt 0:00:10]} Kxe7 {[%emt 0:00:42]} 72. Ke3 {[%emt 0:00:06]} Kd7 {[%emt 0:00:45]} 73. Kd3 {[%emt 0:00:08]} Kc7 {[%emt 0:00:33]} 74. Kc3 {[%emt 0:00:36]} Kb7 {[%emt 0:00:33]} 75. Kb3 {[%emt 0:00:48]} Ka7 {[%emt 0:00:13]} 76. Kc3 {[%emt 0:00:57]} Kb7 {[%emt 0:00:49]} 77. Kb3 {[%emt 0:00:49]} Ka7 {[%emt 0:00:09]} 78. Ka3 {[%emt 0:00:36]} Kb7 {[%emt 0:00:06]} 79. Kb3 {[%emt 0:00:07]} Ka7 {[%emt 0:00:23]} 1/2-1/2

[Event "XII Figueira da Foz Open 2018"]
[Site "Figueira da Foz"]
[Date "2018.10.31"]
[Round "4"]
[White "Dong, Fabio"]
[Black "Morais, Mario Martins Freit"]
[Result "0-1"]
[ECO "A13"]
[WhiteElo "1273"]
[BlackElo "1766"]
[Annotator "NA RC"]
[PlyCount "102"]
[EventDate "2018.10.30"]
[EventType "swiss"]
[EventCountry "POR"]
[SourceTitle "playchess.com"]
[Source "ChessBase"]
[SourceQuality "1"]
[TimeControl "40/5400+30:1800+30"]

1. c4 e6 2. Nc3 d5 3. cxd5 exd5 4. d4 c6 5. Nf3 Be7 6. Bf4 Nf6 7. e3 Bf5 8. h3 Qb6 9. Qb3 Nbd7 10. Qxb6 axb6 11. Be2 O-O 12. O-O Ne8 13. Ne5 Nd6 14. b3 Nf6 15. Na4 b5 16. Nc5 Nfe4 17. Nxe4 Nxe4 18. Bd3 f6 19. Nf3 Bg6 20. Nh4 Bf7 21. Nf5 Ba3 22. Bxe4 dxe4 23. Bd6 Rfd8 24. Bxa3 Rxa3 25. Rfc1 g6 26. Ng3 f5 27. Ne2 Rda8 28. Nc3 Bxb3 29. Rab1 Bxa2 30. Nxa2 Rxa2 31. d5 cxd5 32. Rxb5 Ra1 33. Rxa1 Rxa1+ 34. Kh2 Ra7 35. Rxd5 b6 36. Rb5 Rb7 37. Kg3 Kf7 38. f3 exf3 39. Kxf3 Ke6 40. e4 fxe4+ 41. Kxe4 Kd6 42. Kf4 Kc6 43. Rb2 Kd5 44. Ke3 Kc4 45. Kd2 b5 46. Rc2+ Kb3 47. Rc3+ Kb4 48. Kc2 Rf7 49. Rf3 Rxf3 50. gxf3 Kc4 51. h4 Kd4 0-1